Cogmind - Beta 15 @@@ ROGUE MODE // 2025.10.21 @ 06:27:59 // Winter2019/RPGLIKE Player: War__Prophet Result: Self-destructed Performance ------------- Evolutions (1) 500 Regions Visited (2) 400 Robots Destroyed (6) 30 Value Destroyed (238) 238 Prototype IDs (1) 20 Alien Tech Used (0) 0 Bonus (0) 0 TOTAL SCORE: 1188 Bonus ------- None Cogmind --------- Core Integrity 423/800 Matter 366/400 Energy 236/250 System Corruption 0% Temperature Cool (1) Movement Flying (40) Location -9/Materials Parts ------- > --- POWER (1) -------- Ion Engine > --- PROPULSION (1) --- Improved Flight Unit > --- UTILITY (2) ------ Visual Processing Unit Shield Generator > --- WEAPON (2) ------- Medium Laser Light Assault Rifle > --- INVENTORY (2) ---- (None) Peak State ------------ > --- POWER ------------ Ion Engine > --- PROPULSION ------- Improved Flight Unit > --- UTILITY ---------- Visual Processing Unit Shield Generator > --- WEAPON ----------- Medium Laser Light Assault Rifle > --- INVENTORY -------- (None) [Rating: 10] Favorites ----------- Power Ion Engine Engine Ion Engine Propulsion Wheel Wheel Wheel Hover Unit Improved Hover Unit Flight Unit Improved Flight Unit Utility Visual Processing Unit Device Shield Generator Processor Visual Processing Unit Weapon Light Assault Rifle Energy Gun Medium Laser Ballistic Gun Light Assault Rifle Build | -11 -10 -9 ------- Run | Yrd Mat Mat Slots Evolved 2 | . 2 . Power . | . . . Propulsion . | . . . Utility 1 | . 1 . Weapon 1 | . 1 . Parts Attached 9 | 3 1 5 Power 2 | 1 . 1 Engine 2 | 1 . 1 Core . | . . . Reactor . | . . . Propulsion 3 | 1 . 2 Treads . | . . . Leg . | . . . Wheel 1 | 1 . . Hover 1 | . . 1 Flight 1 | . . 1 Utility 2 | . 1 1 Device 1 | . . 1 Storage . | . . . Processor 1 | . 1 . Hackware . | . . . Protection . | . . . Artifact . | . . . Weapon 2 | 1 . 1 Energy Gun 1 | . . 1 Energy Cannon . | . . . Ballistic Gun 1 | 1 . . Ballistic Cannon . | . . . Launcher . | . . . Special Weapon . | . . . Impact Weapon . | . . . Slashing Weapon . | . . . Piercing Weapon . | . . . Special Melee Weapon . | . . . Unidentified Prototypes 1 | . . 1 Parts Lost . | . . . Power . | . . . Propulsion . | . . . Utility . | . . . Weapon . | . . . Highest Loss Streak . | . . . To Critical Strikes . | . . . Average Backups . | . . . Power . | . . . Propulsion . | . . . Utility . | . . . Weapon . | . . . Tool/Special . | . . . Unused Backups . | . . . Power . | . . . Propulsion . | . . . Utility . | . . . Weapon . | . . . Tool/Special . | . . . Average Slot Usage (%) 75 | . 79 71 Engine 17 | . 20 16 Wheel 11 | . 20 4 Hover 4 | . . 7 Flight 2 | . . 3 Device 2 | . . 5 Processor 17 | . 18 16 Ballistic Gun 17 | . 20 16 Peak Build Rating 10 | 3 5 10 Average Rating 5 | 2 4 6 On Entrance 2 | . 3 5 Naked Turns . | . . . Heaviest Build 10 | 6 6 10 Greatest Support 10 | 10 10 10 Greatest Overweight (x) 2 | 1 . 2 Average Overweight (x) . | . . . Largest Inventory Capacity 2 | . 2 2 Average Capacity 1 | . 1 2 Most Carried 2 | . 1 2 Average Carried . | . . . Final Capacity 2 | . 2 2 Final Carried 1 | . 1 . Class Distribution -------------------- 100% | Mutant Dominant Class ---------------- Mutant | -10/Materials Mutant | -9/Materials Resources | -11 -10 -9 ----------- Run | Yrd Mat Mat Matter Collected 422 | 217 140 65 Remotely . | . . . Salvage Created 171 | . 49 122 Parts 14 | . 6 8 Haulers Intercepted . | . . . Recyclers Shooed . | . . . Parts Field Recycled . | . . . Retrieved Matter . | . . . Parts Self-Destructed . | . . . Prevented . | . . . Kills | -11 -10 -9 ------- Run | Yrd Mat Mat Combat Hostiles Destroyed 6 | . 3 3 Guns 6 | . 3 3 Classes Destroyed 2 | . 1 1 Grunt 5 | . 3 2 Sentry 1 | . . 1 Best Kill Streak 3 | . 3 2 Combat Bots Only 3 | . 3 2 Max Kills in Single Turn 1 | . 1 1 Gunslinging . | . . . Exploded . | . . . Melee . | . . . Uniques/NPCs Destroyed . | . . . Combat | -11 -10 -9 -------- Run | Yrd Mat Mat Hostile Shots Fired 87 | . 17 70 Missed 31 | . 5 26 Hits 56 | . 12 44 Melee 1 | . . 1 Projectile 55 | . 12 43 Damage Taken 720 | . 229 491 Core 602 | . 192 410 Absorbed by Shields 25 | . . 25 Redirected to Core 392 | . 128 264 Core Remaining (%) 88 | 100 76 . Volleys Fired 66 | . 27 39 Largest 1 | . 1 1 Hottest 20 | . 20 20 Shots Fired 66 | . 27 39 Gun 66 | . 27 39 Cannon . | . . . Launcher . | . . . Special . | . . . Kinetic 66 | . 27 39 Thermal . | . . . Explosive . | . . . Electromagnetic . | . . . Robot Hit Streak 13 | . 5 13 Robot Miss Streak 3 | . 3 1 Penetration Max . | . . . Secondary Targets . | . . . Shots Hit Robots 43 | . 15 28 Core Hits 20 | . 10 10 Critical Kills 1 | . . 1 Critical Parts Destroyed . | . . . Critical Strikes 1 | . . 1 Destroy 1 | . . 1 Melee Attacks . | . . . Impact . | . . . Slashing . | . . . Piercing . | . . . Sneak Attacks . | . . . Combat Hostiles . | . . . Follow-up Attacks . | . . . Damage Inflicted 381 | . 137 244 Guns 381 | . 137 244 Cannons . | . . . Explosions . | . . . Melee . | . . . Ramming . | . . . Kinetic 381 | . 137 244 Thermal . | . . . Explosive . | . . . Electromagnetic . | . . . Impact . | . . . Slashing . | . . . Piercing . | . . . Highest Corruption . | . . . Average Corruption . | . . . Corruption Purged . | . . . Corruption Blocked . | . . . Overload Shots . | . . . Overflow Damage . | . . . Projectiles . | . . . Explosions . | . . . Melee . | . . . Knockbacks . | . . . Impact . | . . . Kinetic . | . . . Secondary . | . . . Self-Inflicted Damage 53 | . 53 . Shots 1 | . 1 . Rammed . | . . . Targets Rammed . | . . . Kicked . | . . . Crushed . | . . . Highest Temperature 15 | . 15 14 Average Temperature 5 | . 9 4 Received Heat Transfer 323 | . 96 227 Siege Activations . | . . . Martial Activations . | . . . Shielding Activations . | . . . Robots Disrupted . | . . . Combat Hostiles . | . . . Robots Corrupted . | . . . Combat Hostiles . | . . . Parts Fried . | . . . Impact Corruptions . | . . . Robots Melted . | . . . Combat Hostiles . | . . . Parts Melted . | . . . Heat Transferred . | . . . Parts Sabotaged . | . . . Parts Stolen . | . . . Parts Stripped . | . . . Power Chain Reactions . | . . . Alert | -11 -10 -9 ------- Run | Yrd Mat Mat Maximum Alert Level . | . . . Low Security (%) 100 | 100 100 100 Level 1 . | . . . Level 2 . | . . . Level 3 . | . . . Level 4 . | . . . Level 5 . | . . . High Security . | . . . Max Security . | . . . Peak Influence 72 | . 72 41 Initial 21 | . . 21 Average 22 | . 30 20 Influence Increases 222 | . 122 100 Destroy 0b10 Robot/C 120 | . 60 60 Destroy Leader 20 | . 10 10 Disable Machine 15 | . 15 . Destroy Structure 37 | . 37 . Lose Combat Pursuer 30 | . . 30 Influence Decreases 191 | . 70 121 Entered New Map 31 | . . 31 Time Decay 160 | . 70 90 Squads Dispatched . | . . . Investigation . | . . . Extermination . | . . . Reinforcement . | . . . Assault . | . . . Garrison . | . . . Intercept . | . . . Searches Triggered . | . . . Construction Impeded . | . . . Haulers Reinforced . | . . . Active Scanning Responses . | . . . Cargo Convoy Interrupts . | . . . Stealth | -11 -10 -9 --------- Run | Yrd Mat Mat Distress Signals . | . . . Communications Jammed . | . . . Distress Signals . | . . . Times Spotted 21 | . 6 15 Peak Tracking Total 10 | . 3 10 Tactical Retreats 2 | . . 2 Traps | -11 -10 -9 ------- Run | Yrd Mat Mat Traps Triggered . | . . . Indirectly . | . . . Trap Hack Attempts . | . . . Triggered . | . . . Disarmed . | . . . Reprogrammed . | . . . Reused . | . . . Traps Extracted . | . . . Installed . | . . . Triggered . | . . . Machines | -11 -10 -9 ---------- Run | Yrd Mat Mat Machines Disabled 1 | . 1 . Max in Single Turn 1 | . 1 . Machines Repaired . | . . . Machines Dismantled . | . . . Machines Sabotaged . | . . . Overloaded Fab Kills . | . . . Hacking | -11 -10 -9 --------- Run | Yrd Mat Mat Machines Accessed . | . . . Terminals . | . . . Fabricators . | . . . Repair Stations . | . . . Recycling Units . | . . . Scanalyzers . | . . . Garrison Access . | . . . Total Hacks . | . . . Successful . | . . . Failed . | . . . Catastrophic . | . . . Database Lockouts . | . . . Manual . | . . . Terminals . | . . . Fabricators . | . . . Repair Stations . | . . . Recycling Units . | . . . Scanalyzers . | . . . Garrison Access . | . . . Terminal Hacks . | . . . Fabricator Hacks . | . . . Repair Station Hacks . | . . . Recycling Unit Hacks . | . . . Scanalyzer . | . . . Garrison Access Hacks . | . . . Unauthorized Hacks . | . . . Terminals . | . . . Fabricators . | . . . Repair Stations . | . . . Recycling Units . | . . . Scanalyzers . | . . . Garrison Access . | . . . Data Cores Recovered . | . . . Used . | . . . Hacking Detections . | . . . Full Trace Events . | . . . Feedback Events . | . . . Feedback Blocked . | . . . Robot Schematics Acquired . | . . . Robots Built . | . . . Authchips . | . . . Time . | . . . Total Robot Build Rating . | . . . Part Schematics Acquired . | . . . Parts Built . | . . . Authchips . | . . . Time . | . . . Total Part Build Rating . | . . . Parts Repaired . | . . . Time . | . . . Parts Recycled . | . . . Recycled Matter . | . . . Retrieved Matter . | . . . Retrieved Components . | . . . Parts Scanalyzed . | . . . Part Schematics Acquired . | . . . Parts Damaged . | . . . Bothacking | -11 -10 -9 ------------ Run | Yrd Mat Mat Used RIF Installer . | . . . Robots Hacked . | . . . Non-combat . | . . . Combat . | . . . Robot Hacks Applied . | . . . Relay Couplers Released . | . . . Fabnet Peak Effective % . | . . . Robots Rewired . | . . . Allies Hacked . | . . . Hacks Repelled . | . . . Allies | -11 -10 -9 -------- Run | Yrd Mat Mat Total Allies . | . . . Largest Group . | . . . Highest-Rated Group . | . . . Highest-Rated Ally . | . . . Total Orders . | . . . Ally Attacks . | . . . Total Damage . | . . . Kills . | . . . Allies Corrupted . | . . . Allies Melted . | . . . Intel | -11 -10 -9 ------- Run | Yrd Mat Mat Active Infowar (turns) 370 | . 174 196 Optics 370 | . 174 196 Robot Analysis Total . | . . . Derelict Logs Recovered . | . . . Drone Launches . | . . . Drone Recoveries . | . . . Exploration | -11 -10 -9 ------------- Run | Yrd Mat Mat Turns Passed 413 | 39 178 196 Spaces Moved 360 | 48 141 171 Core 28 | 26 . 2 Treads . | . . . Legs . | . . . Wheels 208 | 22 141 45 Hover 31 | . . 31 Flight 93 | . . 93 Fastest Speed 40 | 50 80 40 Average Speed 69 | 72 80 60 Slowest Speed 150 | 100 80 150 Overloaded Moves . | . . . Propulsion Burnouts . | . . . Robots Hopped 2 | . . 2 Potential Cave-ins . | . . . Cave-ins Triggered . | . . . Exploration Rate (%) 18 | 3 34 17 Regions Visited 2 Branch Regions . Pre-discovered Areas . | . . . Known Exits Taken . | . . . Unknown Exits Taken 2 | 1 1 . Scrap Searched . | . . . Spaces Dug . | . . . Terrain Destroyed 44 | . 44 . Melee . | . . . Projectile . | . . . AOE 44 | . 44 . Terrain Rammed . | . . . Walls Destroyed . | . . . Machines Disabled . | . . . Actions | -11 -10 -9 --------- Run | Yrd Mat Mat Total 465 | 50 183 232 Wait 14 | . 14 . Move 354 | 47 140 167 Hop 2 | . . 2 Pick Up 2 | . 1 1 Fast Attach 8 | 3 1 4 Attach . | . . . Detach 2 | . . 2 Swap 1 | . . 1 Drop 5 | . . 5 Fire 66 | . 27 39 Melee . | . . . Ram . | . . . Kick . | . . . Crush . | . . . Escape Stasis . | . . . Rewire . | . . . Trap . | . . . Miscellaneous 11 | . . 11 Route ------- -11/Scrapyard -10/Materials -9/Materials History --------- Turn | Location | Event 10 | -11/Scrapyard | Discovered new exit (range 15) 40 | -11/Scrapyard | Entered Materials 115 | -10/Materials | Upgraded with Utility slot (x1) 115 | -10/Materials | Upgraded with Weapon slot (x1) 199 | -10/Materials | Discovered new exit (range 13) 218 | -10/Materials | Entered another Materials area 220 | -9/Materials | Reached level 2 302 | -9/Materials | Build established: Mutant 318 | -9/Materials | Core integrity fell below 50% 414 | -9/Materials | Self-destructed Last Messages --------------- 00318_ R-06 Scavenger collects Heat Sink. 00322_ R-06 Scavenger collects Sml. Laser. 00327_ G-34 Mercenary destroyed. 00330_ Acquired Protomatter-34. 00331_ Dropped Protomatter-34. 00335_ Used Protomatter to restore core integrity (+102, depleted) 00338_ Dropped Ion Engine. 00339_ Upgraded: Sight Range (+3) 00339_ Upgraded: Sensor Range (+12) 00339_ Acquired 65 matter. 00345_ Acquired Shield Generator. 00366_ Acquired Prototype Flight Unit. 00366_ Identified Imp. Flight Unit. 00367_ Upgraded: Mass Support (+5) 00377_ Dropped Wheel. 00378_ Dropped Imp. Hover Unit. 00386_ K-01 Serf cleans the Matter Filter. 00404_ T-07 Excavator is excavating. 00412_ Acquired Med. Laser. Map ----- +----------------------------------------------------+ | | | | | ?????????????????????????????????????????????????? | | ?????????????????????????????????????????????????? | | ?????????????????????????????????????????????????? | | ?????????????????????????????????????????????????? | | ?????????????????????????????????????????????????? | | ?????????????????????????????????????????????????? | | ?????????????????????????????????????????????????? | | ?????????????????????????????????????????????????? | | ?????????????????????????????????????????????????? | | ?????????????????????????????????????????????????? | | ?????????????????????????????????????????????????? | | ?????????????????????????????????????????????????? | | ?????????????????????????????????????????????????? | | ?????????????????????????????????????????????????? | | ?????????????????????????????????????#????#??????? | | ????????????????????????????????????? ##? #??????? | | ?????????????????????????????????????# #? #??????? | | ????????????????????????????????????? ???????? | | ??????????????????????###########????# ???????? | | ??????????????????????#[ #????# ????????? | | ??????????????????????# #????# ?????????? | | ??????????????????????# ###### #?????????? | | ??????????????????????# ![! # ## #?????????? | | ??????????????????????# !@! # #?????????? | | ??????????????????????# !! # ## #?????????? | | ??????????????????????# s ## ### #?????????? | | ??????????????????????# s ## #?# #?????????? | | ??????????????????????#####s######?#?# #?????????? | | ?????????????????????????# s #?# ####??????? | | ???????????????? g##/##+#?# +??????? | | ???????????????########### # ?# #??????? | | ?????????????????????????# ?b# ?# #??????? | | ?????????????????????????# # ## +??????# | | ?????????????????????????# # ## #??????# | | ?????????????????????????# # ## ######## | | ?????????????????????????# # ## | | ?????????????????????????# ######### ########### | | ?????????????????????????# #???????# #?????????? | | ?????????????????????????+ #???????# #?????????? | | ?????????????????????????# #???????# #?????????? | | ?????????????????????????# #???????# #?????????? | | ?????????????????????????# ??????? ??????????? | | ?????????????????????????# #???????# ??????????? | | ?????????????????????????# #???????# ??######### | | ?????????????????????????# ????????# ??# | | ?????????????????????????# ????????#/??# | | ?????????????????????????# ???????? ??# = | | ?????????????????????????? ????????" ??# = | +----------------------------------------------------+ Best States ------------- Heat Dissipation 25 Energy Generation 10 Energy Capacity 250 Matter Stores 400 Matter Capacity 400 Sight Range 21 Robot Scan Range 12 Terrain Scan Density 10 Evasion (%) 62 Item Schematics ----------------- None Robot Schematics ------------------ None Fabricated ------------ Nothing Repaired ---------- Nothing Alien Tech Used ----------------- None Achievements -------------- None Challenges ------------ None RPGLIKE | -11 -10 -9 --------- Run | Yrd Mat Mat Levels Raised 1 | . . 1 XP Earned 5275 | 3000 425 1850 XP Spent 4010 | . 2335 1675 Upgrades 20 | . 10 10 Utility Slot 1 | . 1 . Weapon Slot 1 | . 1 . Core Integrity 4 | . 4 . Matter Storage 2 | . 2 . Mass Support 1 | . . 1 Inventory Capacity 2 | . 2 . Sight Range 3 | . . 3 Sensor Range 6 | . . 6 Protomatter Created 114 | . 80 34 Integrity Restored 225 | . . 225 Core 225 | . . 225 Protomatter Decayed 39 | . 39 . Game ------ Seed CompositeNullConstruct Manual? 0 Play Time 00:07:55 Cumulative 37.7 hours Start 2025.10.21 @ 06:15:57 End 2025.10.21 @ 06:27:59 Sessions 1 Manual Loads 0 Difficulty Rogue Special Mode Winter2019/RPGLIKE Game No. 150 Rogue 150 Adventurer 0 Explorer 0 Win Type - Total 0 Types 0/0/0/0/0/0/0/0/0/0 Lore% 12 Gallery% 32 Achievement% 31 Wizard Run 0 Options --------- Layout 2 ASCII 0 Keyboard 1 Movement Vi Keybinds 0 Fullscreen 1 Font 16/SmallcapsGlow Map View 55x47 Zoom Use 0% Tactical HUD 1 Map Filters NONE Filters NONE Steam 1 RUN: 75970059-3acb-421f-8e89-a1aa43fc7b6a